Workbook

Sheet NOTES
A1: DISCLAIMER
A2: This tool was developed by an observer participating with the Protection System Response to Power Swings Standard Drafting Team (PSRPS SDT) as a standard development aid for understanding how the PRC-026-1 - Attachment B criteria (i.e., lens) is applied under the draft PRC-026-1 standard. This tool is provided entirely for demonstration purposes, is not to be relied on for actual calculations, and is not intended to be used for compliance with any NERC Reliability Standard.
A4: PRC-026-1 Stable Power Swings
A5: LINE and SYSTEM INPUT DATA (yellow background cells)
A6: Enter the case identifier in cell A2, (e.g. Station and Line Names).
A7: System Nominal Voltage (e.g. 230 kV, cell D5).
A8: Weak bus equivalent voltage ratio, default = 0.7 based on PRC-026-1 - Attachment B Criteria (cell D6).
A9: Maximum stable power swing angle, default is 120° based on PRC-026-1 - Attachment B Criteria (cell D7).
A10: Enter the line impedance R + j X in primary ohms (cells B10 and C10).
A11: Enter the Source (cells B17 and C17) and Receiving (cells E17 and F17) bus 3-phase fault duty contributions at the terminal in primary amps and angle. These fault values are obtained from a fault modeling program and may be calculated based on saturated (transient or sub-transient) reactance based on PRC-026-1 - Attachment B Criteria.
A12: If desired (not required by PRC-026-1), the user may enter the system transfer resistance and reactance in primary ohms between the source and receiving ends of the line (cells I17 and J17). The preferred impedances per the PRC-026-1 Application Guidelines are infinite (>> than line impedance).
A13: RELAY INPUT DATA (yellow background cells)
A14: The user may select either MHO or QUAD characteristics, depending on their specific relay characteristics (cel B23).
A15: The user may enter the characteristics for up to two impedance zones (cells B26 - C33). Depending on the specific characteristic shape, not all of these cells will need data entries.
A16: SPREAD SHEET RESULTS
A17: The spreadsheet tab "PRC-026-1" allows data entry for the user and calculates the power swing stability lens characteristic per the PRC-026-1 Application Guidelines. The results are plotted in the chart "PRC-026-1 Chart" tab along with relay impedance element characteristics, scaled in primary ohms.
A18: Distance protection systems which may be susceptible to tripping in response to a stable power swings will have at least part of the relay protection element outside of the 120° lens characteristic as calculated by the spreadsheet. Relay impedance characteristics contained completely inside the lens will meet the PRC-026-1 - Attachment B Criteria are expected to not trip on a stable ower swing.

Sheet PRC-026-1
A1: PRC-026-1 Stable Power Swings | I1: Input System and Settings Data | K1: Pirad = | L1: =180/PI() -> 57.29577951
A2: California Sub 101 Line | I2: Plotted Data
I4: Drop-Down Menus | M4: CHART LABELS
C5: V base = | D5: 120 | E5: kV | I5: E53,Q53 | J5: B64-E64 | M5: Weak Equivalent voltage ratio, Eq: = | N5: ="Equivalent Source Voltage Ratios = " & ROUND($D$6,2) -> Equivalent Source Voltage Ratios = 0.7
C6: Weak Bus Equivalent Voltage Ratio = | D6: 0.7 | E6: for source / receiving or receiving / source system | I6: Mho | J6: F | M6: Label 11 = | N6: =B25 & IF(B26=0,"Not Used"," (" & B32 & ")") -> Zone 1 (F)
C7: Stable Power Swing Limit Angle = | D7: 120 | E7: degrees, default = 120 | I7: Quad | J7: R | M7: Label 12 = | N7: =C25 & IF(C26=0,"Not Used"," (" & C32 & ")") -> Zone 2 (F)
A9: Line Impedance (input RL + j XL in primary ohms)
A10: "RL + j XL =" | B10: 5.325 | C10: 15.227 | D10: primary Ώ
A11: "Line Z =" | B11: =SQRT(B10^2+C10^2) -> 16.13124775 | C11: =Pirad*ATAN2(B10,C10) -> 70.72487216 | D11: MAG / ANGLE
A14: System Equivalents and Transfer Impedances. Fault duties are in primary amps /angle. Transfer impedances are in primary ohms, R + j X.
A15: (N) | B15: Maximum Generation, System Intact
B16: Source End Fault Duty (A pri) | D16: Receiving End Fault Duty (A pri) | G16: System Transfer Impedance (input R + j X in primary ohms) | K16: MAG | L16: Angle
A17: I f / ang = | B17: 6609 | C17: -84 | D17: I f / ang = | E17: 2686 | F17: -76 | H17: Rtr + j Xtr = | I17: 99999 | J17: 999999 | K17: =SQRT(I17^2+J17^2) -> 1004986.468 | L17: =Pirad*ATAN2(I17,J17) -> 84.28945792 | M17: primary Ώ
A18: Z f = | B18: =1000*V_base/(SQRT(3)*B17) -> 10.48298265 | C18: =-C17 -> 84 | D18: "Z f " | E18: =1000*V_base/(SQRT(3)*E17) -> 25.79375737 | F18: =-F17 -> 76 | H18: ZL + Ztr = | I18: =(B$10+I17) -> 100004.325 | J18: =(C$10+J17) -> 1000014.227 | K18: =SQRT(I18^2+J18^2) -> 1005002.149 | L18: =Pirad*ATAN2(I18,J18) -> 84.28924222 | M18: primary Ώ
A19: Rf + j Xf = | B19: =B18*COS(C18/Pirad) -> 1.095770066 | C19: =B18*SIN(C18/Pirad) -> 10.42555577 | D19: Rf + j Xf = | E19: =E18*COS(F18/Pirad) -> 6.240074678 | F19: =E18*SIN(F18/Pirad) -> 25.02757254 | H19: ZT = | I19: =K19*COS(L19/Pirad) -> 5.32485959 | J19: =K19*SIN(L19/Pirad) -> 15.22678246 | K19: =B11*K17/K18 -> 16.13099605 | L19: =C11+L17-L18 -> 70.72508785 | M19: primary Ώ
C22: Distance Protection Zone Shape =
B23: Mho
B25: Zone 1 | C25: Zone 2
A26: =IF(B23="Mho","Mho","Quad") & " Fwd Reach" -> Mho Fwd Reach | B26: 13 | C26: 19.31 | D26: primary Ώ | F26: R | G26: X | H26: Diameter
A27: =IF(B23="Mho","Forward","Quad Right") & " MTA" -> Forward MTA | B27: 75 | C27: =B27 -> 75 | E27: 1F | F27: =B26*COS(B27/Pirad) -> 3.364647586 | G27: =B26*SIN(B27/Pirad) -> 12.55703574 | H27: =SQRT((F27-F28)^2+(G27-G28)^2) -> 13
A28: =IF(B23="Mho","Mho","Quad") & " Rev Reach" -> Mho Rev Reach | B28: 0 | C28: 0 | E28: 1R | F28: =-B28*COS(B29/Pirad) -> 0 | G28: =-B28*SIN(B29/Pirad) -> 0 | N28: =D7&"º Full Lens Characteristic" -> 120º Full Lens Characteristic
A29: =IF(B23="Mho","Reverse","Quad Left") & " MTA" -> Reverse MTA | B29: 75 | C29: =B29 -> 75 | E29: 2F | F29: =C26*COS(C27/Pirad) -> 4.997795761 | G29: =C26*SIN(B27/Pirad) -> 18.65202771 | H29: =SQRT((F29-F30)^2+(G29-G30)^2) -> 19.31 | M29: Angles | N29: R max/min | O29: X max/min
A30: =IF(B23="Mho","Not Used","Quad Right Blinder") -> Not Used | B30: 4 | C30: 6 | E30: 2R | F30: =-C28*COS(C29/Pirad) -> 0 | G30: =-C28*SIN(C29/Pirad) -> 0 | L30: Upper Right | M30: =(M36-M41)/5 -> 12 | N30: =S32*COS(S34/Pirad) -> 11.56526627 | O30: =S32*SIN(S34/Pirad) -> 40.25493957
A31: =IF(B23="Mho","Not Used","Quad Left Blinder") -> Not Used | B31: 0 | C31: 0 | L31: Lower Right | M31: =(M42-M47)/5 -> 12 | N31: =S33*COS(S35/Pirad) -> -1.095809315 | O31: =S33*SIN(S35/Pirad) -> -10.42555164
A32: Forward / Reverse | B32: F | C32: F | L32: Upper Left | M32: =(M59-M54)/5 -> -12 | N32: XX | O32: XX | R32: Forward Reach = | S32: =SQRT(A68^2+B68^2) -> 41.8833564 | T32: =8*(S32-S33) -> 418.9307124
A33: Zone Timers (sec) | B33: 0 | C33: 0.3 | L33: Lower Left | M33: =(M53-M48)/5 -> -12 | N33: Radius = | O33: =SQRT((N30-S44)^2+(O30-T44)^2)/(2*COS(D7/2/Pirad)) -> 30.15965862 | R33: Reverse Reach = | S33: =-B18 -> -10.48298265 | T33: =-T32 -> -418.9307124
I34: =D7&"º Stable Swing Characteristic" -> 120º Stable Swing Characteristic | L34: Right Lens | M34: XX | N34: =S44-O33*COS((S36-90)/Pirad) -> -9.395469147 | O34: =T44-O33*SIN((S36-90)/Pirad) -> 18.56963166 | R34: Forward RCA = | S34: =Pirad*ATAN2(A68,B68) -> 73.97061246
I35: R | J35: X | L35: Left Lens | M35: XX | N35: =S42+(O33-S41)*COS((S36-90)/Pirad) -> 19.8649261 | O35: =S43+(O33-S41)*SIN((S36-90)/Pirad) -> 11.25975626 | R35: Reverse RCA = | S35: =Pirad*ATAN2(-A65,-B65) -> 83.9997843
I36: =H97 -> 17.78175009 | J36: =I97 -> 5.492790966 | M36: =Pirad*ATAN2(N30-N34,O30-O34) -> 45.97338343 | N36: =N$34+O$33*COS(M36/Pirad) -> 11.56526627 | O36: =O$34+O$33*SIN(M36/Pirad) -> 40.25493957 | R36: Lens Characteristic RCA = | S36: =Pirad*ATAN2((N30-N31),(O30-O31)) -> 75.97338343
I37: =I36-0.2*(I$36-I$41) -> 12.1672563 | J37: =SQRT(J$78^2-(I37-H$78)^2)+I$78 -> 7.920316619 | L37: Upper | M37: =M36-M$30 -> 33.97338343 | N37: 15.61585294 | O37: 35.42308162
A38: Center | B38: =IF(B32="F",1,-1)*(F27+F28)/2 -> 1.682323793 | C38: =IF(B32="F",1,-1)*(G27+G28)/2 -> 6.278517871 | D38: =IF(C32="F",1,-1)*(F29+F30)/2 -> 2.49889788 | E38: =IF(C32="F",1,-1)*(G29+G30)/2 -> 9.326013853 | I38: =I37-0.2*(I$36-I$41) -> 6.552762511 | J38: =SQRT(J$78^2-(I38-H$78)^2)+I$78 -> 9.788726256 | M38: =M37-M$30 -> 21.97338343 | N38: 18.57332482 | O38: 29.85464704 | S38: Lens | T38: m+1/m
A39: Angle | B39: R1 | C39: X1 | D39: R2 | E39: X2 | I39: =I38-0.2*(I$36-I$41) -> 0.9382687203 | J39: =SQRT(J$78^2-(I39-H$78)^2)+I$78 -> 11.16068635 | M39: =M38-M$30 -> 9.973383431 | N39: 20.3084262 | O39: 23.79300313 | R39: m =tan (Char MTA) | S39: =TAN(S36/Pirad) -> 4.002858279 | T39: =S39+1/S39 -> 4.252679765
A40: 0 | B40: =IF($B$23="Mho",$B$38+($H$27*COS($A40/Pirad))/2,B56) -> 8.182323793 | C40: =IF($B$23="Mho",$C$38+($H$27*SIN($A40/Pirad))/2,C56) -> 6.278517871 | D40: =IF($B$23="Mho",$D$38+($H$29*COS($A40/Pirad))/2,D56) -> 12.15389788 | E40: =IF($B$23="Mho",$E$38+($H$29*SIN($A40/Pirad))/2,E56) -> 9.326013853 | I40: =I39-0.2*(I$36-I$41) -> -4.676225071 | J40: =SQRT(J$78^2-(I40-H$78)^2)+I$78 -> 12.06490765 | L40: Right | M40: =M39-M$30 -> -2.026616569 | N40: 20.74532481 | O40: 17.50307283 | R40: P1-P2 = | S40: =SQRT((N30-N31)^2+(O30-O31)^2) -> 52.23806107
A41: 30 | B41: =IF($B$23="Mho",$B$38+($H$27*COS($A41/Pirad))/2,B56) -> 7.311488918 | C41: =IF($B$23="Mho",$C$38+($H$27*SIN($A41/Pirad))/2,C56) -> 9.528517871 | D41: =IF($B$23="Mho",$D$38+($H$29*COS($A41/Pirad))/2,D56) -> 10.86037315 | E41: =IF($B$23="Mho",$E$38+($H$29*SIN($A41/Pirad))/2,E57) -> 14.15351385 | I41: =H98 -> -10.29071886 | J41: =I98 -> 11.75177783 | L41: of | M41: =Pirad*ATAN2(S56-N34,T56-O34) -> -14.02661657 | N41: 19.8649261 | O41: 11.25975626 | R41: Po-P = | S41: =S40/(2*TAN(D7/(2*Pirad))) -> 15.07982931
A42: 60 | B42: =IF($B$23="Mho",$B$38+($H$27*COS($A42/Pirad))/2,B57) -> 4.932323793 | C42: =IF($B$23="Mho",$C$38+($H$27*SIN($A42/Pirad))/2,C57) -> 11.907683 | D42: =IF($B$23="Mho",$D$38+($H$29*COS($A42/Pirad))/2,D57) -> 7.32639788 | E42: =IF($B$23="Mho",$E$38+($H$29*SIN($A42/Pirad))/2,E57) -> 17.68748913 | I42: =H98 -> -10.29071886 | J42: =I98 -> 11.75177783 | L42: MTA | M42: =Pirad*ATAN2(S57-N34,T57-O34) -> -14.02661657 | N42: 19.8649261 | O42: 11.25975626 | R42: Ro = | S42: =(N30+N31)/2 -> 5.234728476
A43: 90 | B43: =IF($B$23="Mho",$B$38+($H$27*COS($A43/Pirad))/2,B57) -> 1.682323793 | C43: =IF($B$23="Mho",$C$38+($H$27*SIN($A43/Pirad))/2,C57) -> 12.77851787 | D43: =IF($B$23="Mho",$D$38+($H$29*COS($A43/Pirad))/2,D57) -> 2.49889788 | E43: =IF($B$23="Mho",$E$38+($H$29*SIN($A43/Pirad))/2,E57) -> 18.98101385 | I43: =N$35-SQRT(O$33^2-(J43-O$35)^2) -> -10.1407764 | J43: =J42-0.2*(J$41-J$47) -> 14.30324533 | L43: Line | M43: =M42-M$31 -> -26.02661657 | N43: 17.70570771 | O43: 5.335916331 | R43: Xo = | S43: =(O30+O31)/2 -> 14.91469396
A44: 120 | B44: =IF($B$23="Mho",$B$38+($H$27*COS($A44/Pirad))/2,B31) -> -1.567676207 | C44: =IF($B$23="Mho",$C$38+($H$27*SIN($A44/Pirad))/2,0) -> 11.907683 | D44: =IF($B$23="Mho",$D$38+($H$29*COS($A44/Pirad))/2,C31) -> -2.32860212 | E44: =IF($B$23="Mho",$E$38+($H$29*SIN($A44/Pirad))/2,0) -> 17.68748913 | I44: =N$35-SQRT(O$33^2-(J44-O$35)^2) -> -9.771225291 | J44: =J43-0.2*(J$41-J$47) -> 16.85471283 | M44: =M43-M$31 -> -38.02661657 | N44: 14.36203784 | O44: -0.009546739952 | R44: R r + J X r = | S44: =S42+S41*COS((90-S36)/Pirad) -> 19.8649261 | T44: =S43+S41*SIN((S36-90)/Pirad) -> 11.25975626
A45: 150 | B45: =IF($B$23="Mho",$B$38+($H$27*COS($A45/Pirad))/2,B58) -> -3.946841331 | C45: =IF($B$23="Mho",$C$38+($H$27*SIN($A45/Pirad))/2,C58) -> 9.528517871 | D45: =IF($B$23="Mho",$D$38+($H$29*COS($A45/Pirad))/2,D58) -> -5.862577393 | E45: =IF($B$23="Mho",$E$38+($H$29*SIN($A45/Pirad))/2,E58) -> 14.15351385 | I45: =N$35-SQRT(O$33^2-(J45-O$35)^2) -> -9.173682393 | J45: =J44-0.2*(J$41-J$47) -> 19.40618033 | M45: =M44-M$31 -> -50.02661657 | N45: 9.980050915 | O45: -4.543010562 | R45: R L + J X L = | S45: =S42-S41*COS((90-S36)/Pirad) -> -9.395469147 | T45: =S43-S41*SIN((S36-90)/Pirad) -> 18.56963166
A46: 180 | B46: =IF($B$23="Mho",$B$38+($H$27*COS($A46/Pirad))/2,B58) -> -4.817676207 | C46: =IF($B$23="Mho",$C$38+($H$27*SIN($A46/Pirad))/2,C58) -> 6.278517871 | D46: =IF($B$23="Mho",$D$38+($H$29*COS($A46/Pirad))/2,D58) -> -7.15610212 | E46: =IF($B$23="Mho",$E$38+($H$29*SIN($A46/Pirad))/2,E58) -> 9.326013853 | I46: =N$35-SQRT(O$33^2-(J46-O$35)^2) -> -8.333657629 | J46: =J45-0.2*(J$41-J$47) -> 21.95764783 | L46: Lower | M46: =M45-M$31 -> -62.02661657 | N46: 4.751260791 | O46: -8.066341013 | R46: B r/L = | S46: =S43-S42*TAN((S36-90)/Pirad) -> 16.2224416
A47: 210 | B47: =IF($B$23="Mho",$B$38+($H$27*COS($A47/Pirad))/2,B59) -> -3.946841331 | C47: =IF($B$23="Mho",$C$38+($H$27*SIN($A47/Pirad))/2,C59) -> 3.028517871 | D47: =IF($B$23="Mho",$D$38+($H$29*COS($A47/Pirad))/2,D59) -> -5.862577393 | E47: =IF($B$23="Mho",$E$38+($H$29*SIN($A47/Pirad))/2,E59) -> 4.498513853 | I47: =H124 -> -7.228606202 | J47: =I124 -> 24.50911533 | M47: =Pirad*ATAN2(N31-N34,O31-O34) -> -74.02661657 | N47: -1.095809315 | O47: -10.42555164 | S47: Left | T47: Right
A48: 240 | B48: =IF($B$23="Mho",$B$38+($H$27*COS($A48/Pirad))/2,B59) -> -1.567676207 | C48: =IF($B$23="Mho",$C$38+($H$27*SIN($A48/Pirad))/2,C59) -> 0.6493527463 | D48: =IF($B$23="Mho",$D$38+($H$29*COS($A48/Pirad))/2,D59) -> -2.32860212 | E48: =IF($B$23="Mho",$E$38+($H$29*SIN($A48/Pirad))/2,E59) -> 0.9645385793 | I48: =H124 -> -7.228606202 | J48: =I124 -> 24.50911533 | M48: =IF(Pirad*ATAN2(N31-N35,O31-O35)>0,Pirad*ATAN2(N31-N35,O31-O35)-360,Pirad*ATAN2(N31-N35,O31-O35)) -> -134.0266166 | N48: =N$35+O$33*COS(M48/Pirad) -> -1.095809315 | O48: =O$35+O$33*SIN(M48/Pirad) -> -10.42555164 | R48: r= | S48: =N35-O33*COS((S36-90)/Pirad) -> -9.395469147 | T48: =N34-O33*COS((S36-90)/Pirad) -> -38.65586439
A49: 270 | B49: =IF($B$23="Mho",$B$38+($H$27*COS($A49/Pirad))/2,B30) -> 1.682323793 | C49: =IF($B$23="Mho",$C$38+($H$27*SIN($A49/Pirad))/2,0) -> -0.2214821291 | D49: =IF($B$23="Mho",$D$38+($H$29*COS($A49/Pirad))/2,C30) -> 2.49889788 | E49: =IF($B$23="Mho",$E$38+($H$29*SIN($A49/Pirad))/2,0) -> -0.3289861472 | I49: =I47-0.2*(I$47-I$53) -> -1.634057632 | J49: =-SQRT(J$104^2-(I49-H$104)^2)+I$104 -> 21.88475987 | L49: Lower | M49: =M48+M$32 -> -146.0266166 | N49: -5.146395989 | O49: -5.593693697 | R49: x= | S49: =TAN((S36-90)/Pirad)*S48+S46 -> 18.56963166 | T49: =TAN((S36-90)/Pirad)*T48+S46 -> 25.87950705
A50: 300 | B50: =IF($B$23="Mho",$B$38+($H$27*COS($A50/Pirad))/2,B56) -> 4.932323793 | C50: =IF($B$23="Mho",$C$38+($H$27*SIN($A50/Pirad))/2,C56) -> 0.6493527463 | D50: =IF($B$23="Mho",$D$38+($H$29*COS($A50/Pirad))/2,D56) -> 7.32639788 | E50: =IF($B$23="Mho",$E$38+($H$29*SIN($A50/Pirad))/2,E56) -> 0.9645385793 | I50: =I49-0.2*(I$47-I$53) -> 3.960490937 | J50: =-SQRT(J$104^2-(I50-H$104)^2)+I$104 -> 20.02791625 | M50: =M49+M$32 -> -158.0266166 | N50: -8.10386787 | O50: -0.02525911511 | R50: B blinder= | S50: =-S39*#REF! ->  | T50: =-S39*#REF! -> 
A51: 330 | B51: =IF($B$23="Mho",$B$38+($H$27*COS($A51/Pirad))/2,B56) -> 7.311488918 | C51: =IF($B$23="Mho",$C$38+($H$27*SIN($A51/Pirad))/2,C56) -> 3.028517871 | D51: =IF($B$23="Mho",$D$38+($H$29*COS($A51/Pirad))/2,D56) -> 10.86037315 | E51: =IF($B$23="Mho",$E$38+($H$29*SIN($A51/Pirad))/2,E56) -> 4.498513853 | I51: =I50-0.2*(I$47-I$53) -> 9.555039507 | J51: =-SQRT(J$104^2-(I51-H$104)^2)+I$104 -> 18.66372096 | M51: =M50+M$32 -> -170.0266166 | N51: -9.838969246 | O51: 6.036384791 | R51: a= | S51: =1+S39^2 -> 17.02287441 | T51: =1+S39^2 -> 17.02287441
A52: 360 | B52: =IF($B$23="Mho",$B$38+($H$27*COS($A52/Pirad))/2,B56) -> 8.182323793 | C52: =IF($B$23="Mho",$C$38+($H$27*SIN($A52/Pirad))/2,C56) -> 6.278517871 | D52: =IF($B$23="Mho",$D$38+($H$29*COS($A52/Pirad))/2,D56) -> 12.15389788 | E52: =IF($B$23="Mho",$E$38+($H$29*SIN($A52/Pirad))/2,E56) -> 9.326013853 | I52: =I51-0.2*(I$47-I$53) -> 15.14958808 | J52: =-SQRT(J$104^2-(I52-H$104)^2)+I$104 -> 17.76384461 | L52: Left | M52: =M51+M$32 -> -182.0266166 | N52: -10.27586786 | O52: 12.32631509 | R52: b= | S52: =-2*(N35+S39*(T33*S39+O35)) -> 13295.07611 | T52: =-2*(N34+S39*(T32*S39+O34)) -> -13554.82065
I53: =H123 -> 20.74413665 | J53: =I123 -> 17.47000864 | L53: of | M53: =IF(Pirad*ATAN2(S59-N35,T59-O35)>0,Pirad*ATAN2(S59-N35,T59-O35)-360,Pirad*ATAN2(S59-N35,T59-O35)) -> -194.0266166 | N53: -9.395469147 | O53: 18.56963166 | R53: c= | S53: =N35^2+T33*S39*(T33*S39+2*O35)+O35^2-O33^2 -> 2773909.959 | T53: =N34^2+T32*S39*(T32*S39+2*O34)+O34^2-O33^2 -> 2873864.678
A54: Zone Distance Quad Relay Characteristics | I54: =H123 -> 20.74413665 | J54: =I123 -> 17.47000864 | L54: MTA | M54: =IF(Pirad*ATAN2(S58-N35,T58-O35)<0,Pirad*ATAN2(S58-N35,T58-O35),Pirad*ATAN2(S58-N35,T58-O35)-360) -> -194.0266166 | N54: -9.395469147 | O54: 18.56963166 | S54: =S52^2-4*S51*S53 -> -12120634.65 | T54: =T52^2-4*T51*T53 -> -11952587.13
A55: Blinder X Int'cpt L/R = | B55: =-B31*TAN(B29/Pirad) -> 0 | C55: =-B30*TAN(B27/Pirad) -> -14.92820323 | D55: =-C31*TAN(C29/Pirad) -> 0 | E55: =-C30*TAN(C27/Pirad) -> -22.39230485 | I55: =N$34+SQRT(O$33^2-(J55-O$34)^2) -> 20.56099122 | J55: =J54-0.2*(J$53-J$59) -> 15.0745651 | L55: Line | M55: =M54+M$33 -> -206.0266166 | N55: -7.236250754 | O55: 24.49347159 | R55: Blinder-Mho Circle Intersections | S55: R outer | T55: X outer
A56: Q1 = | B56: =(B26-C55)/TAN(B27/Pirad) -> 7.483339502 | C56: =B26 -> 13 | D56: =(C26-E55)/TAN(C27/Pirad) -> 11.17409891 | E56: =C26 -> 19.31 | I56: =N$34+SQRT(O$33^2-(J56-O$34)^2) -> 20.18335603 | J56: =J55-0.2*(J$53-J$59) -> 12.67912157 | M56: =M55+M$33 -> -218.0266166 | N56: -3.892580887 | O56: 29.83893466 | R56: Upper Right | S56: =IF(T54<0,S44,(-T52+SQRT(T52^2-4*T51*T53))/(2*T51)) -> 19.8649261 | T56: =IF(T54<0,T44,S39*S56+T50) -> 11.25975626
A57: Q2 = | B57: =(B26-B55)/TAN(B29/Pirad) -> 3.483339502 | C57: =B26 -> 13 | D57: =(C26-D55)/TAN(C29/Pirad) -> 5.174098906 | E57: =C26 -> 19.31 | I57: =N$34+SQRT(O$33^2-(J57-O$34)^2) -> 19.60363395 | J57: =J56-0.2*(J$53-J$59) -> 10.28367803 | M57: =M56+M$33 -> -230.0266166 | N57: 0.4894060359 | O57: 34.37239849 | R57: Lower Right | S57: =IF(T54<0,S44,(-T52-SQRT(T52^2-4*T51*T53))/(2*T51)) -> 19.8649261 | T57: =IF(T54<0,T44,S39*S57+T50) -> 11.25975626
A58: Q3 = | B58: =-(B28+B55)/TAN(B29/Pirad) -> 0 | C58: =-B28 -> 0 | D58: =-(C28+D55)/TAN(C29/Pirad) -> 0 | E58: =-C28 -> 0 | I58: =N$34+SQRT(O$33^2-(J58-O$34)^2) -> 18.80936666 | J58: =J57-0.2*(J$53-J$59) -> 7.8882345 | L58: Upper | M58: =M57+M$33 -> -242.0266166 | N58: 5.71819616 | O58: 37.89572894 | R58: Upper Left | S58: =IF(S54<0,S45,(-S52+SQRT(S52^2-4*S51*S53))/(2*S51)) -> -9.395469147 | T58: =IF(S54<0,T45,S39*S58+S50) -> 18.56963166
A59: Q4 = | B59: =-(B28+C55)/TAN(B27/Pirad) -> 4 | C59: =-B28 -> 0 | D59: =-(C28+E55)/TAN(C27/Pirad) -> 6 | E59: =-C28 -> 0 | I59: =H97 -> 17.78175009 | J59: =I97 -> 5.492790966 | M59: =Pirad*ATAN2(N30-N35,O30-O35)-360 -> -254.0266166 | N59: 11.56526627 | O59: 40.25493957 | R59: Lower Left | S59: =IF(S54<0,S45,(-S52-SQRT(S52^2-4*S51*S53))/(2*S51)) -> -9.395469147 | T59: =IF(S54<0,T45,S39*S59+S50) -> 18.56963166
A62: System Impedance Loci | G62: System Swing Locus:
A63: =A62 & ": " & B15 & ", Es = Er" -> System Impedance Loci: Maximum Generation, System Intact, Es = Er | G63: =G62 & " " & B15 & ", Es = Er" -> System Swing Locus: Maximum Generation, System Intact, Es = Er
A64: RL1 | B64: XL1 | C64: Z slope | D64: Swing slope | E64: Swing Intercept | G64: RS1 | H64: XS1
A65: =-B11*B18*COS((C11+C18-L19)/Pirad)/K19 -> -1.095826413 | B65: =-B11*B18*SIN((C11+C18-L19)/Pirad)/K19 -> -10.42571432 | C65: =(B68-B65)/(A68-A65) -> 4.002865722 | D65: =-1/C65 -> -0.2498210206 | E65: =H65-D$65*G65 -> 16.2223557 | G65: =3*MIN(N36:N59) -> -30.82760358 | H65: =H66+D65*(G65-G66) -> 23.92373909 | I65: - swing locus
A66: 0 | B66: 0 | C66: slope ang | D66: =180*ATAN(C65)/PI() -> 75.97340848 | E66: =Pirad*ATAN(D66) -> 89.24588784 | G66: =(A65+A68)/2 -> 5.234719926 | H66: =(B65+B68)/2 -> 14.91461262 | I66: Swing locus midpoint
A67: =B10 -> 5.325 | B67: =C10 -> 15.227 | C67: Zsw120= | D67: =C71/2/SQRT(3) -> 15.07987607 | G67: =3*MAX(N36:N59) -> 62.23597443 | H67: =H66+D65*(G67-G66) -> 0.6745010485 | I67: + swing locus
A68: =A67+B11*E18*COS((C11+F18-L19)/Pirad)/K19 -> 11.56526627 | B68: =B67+B11*E18*SIN((C11+F18-L19)/Pirad)/K19 -> 40.25493957 | C68: R- | D68: =G66-D67*SIN(PI()*D66/180) -> -9.395524656
C69: R+ | D69: =G66+D67*SIN(PI()*D66/180) -> 19.86496451
B70: R + j X = | C70: =A68-A65 -> 12.66109268 | D70: =B68-B65 -> 50.68065389
B71: Z N = | C71: =SQRT(C70^2+D70^2) -> 52.23822304 | D71: =ATAN2(C70,D70)*Pirad -> 75.97340848 | E71: =B65-C65*A65 -> -6.039268333
B72: Xn = | C72: =B65-A65*C65 -> -6.039268333 | E72: =(E65-E71)/(C65-D65) -> 5.234719926
A74: Weak Source End Swing Locus and intersections with the Lens Characteristics (Es < Er, circular excitation model)
A75: E(S)/E(R) = | B75: =$D$6 -> 0.7 | D75: Re (kZtF) | E75: Im (kZtF) | F75: R1 (seg) | G75: X1 (seg) | H75: Δ R | I75: Δ X | J75: Radius
A76: Z (R) = | B76: =C71 -> 52.23822304 | C76: =D71 -> 75.97340848 | D76: =IF($B$75<1,$B$75/($B$75-1),1)*B$76*COS(C$76/Pirad) -> -29.54254958 | E76: =IF($B$75<1,$B$75/($B$75-1),1)*B$76*SIN(C$76/Pirad) -> -118.2548591 | F76: =D76+$B$78 -> -30.638376 | G76: =E76+$C$78 -> -128.6805734 | H76: =F76-F77 -> -34.75594069 | I76: =G76-G77 -> -139.1233636 | J76: =SQRT(H76^2+I76^2)/2 -> 71.69952182
B77: =C70 -> 12.66109268 | C77: =D70 -> 50.68065389 | D77: =B75*B77/(B75+1) -> 5.213391103 | E77: =B75*C77/(B75+1) -> 20.86850454 | F77: =D77+$B$78 -> 4.11756469 | G77: =E77+$C$78 -> 10.44279022
A78: - Rs - j Xs = | B78: =A65 -> -1.095826413 | C78: =B65 -> -10.42571432 | G78: ES < ER Swing Locus Center and Radius | H78: =(F77+F76)/2 -> -13.26040565 | I78: =(G77+G76)/2 -> -59.11889158 | J78: =J76 -> 71.69952182
D80: ="Swing Locus, Es/Er = "&B75 -> Swing Locus, Es/Er = 0.7 | E80: Power Swing Vulnerability Full Lens
A81: Δ θ | B81: θ | C81: R-S | D81: X-S | E81: crossing | F81: slope | G81: Intercept
A82: =(B88-B82)/6 -> 12.89296023 | B82: =Pirad*ACOS(MAX(-1,MIN(1,(2*ABS(G65)-$H$78)/$J$78))) -> 0 | C82: =IF($B$101>1,$H$78+$J$78*COS(B82/Pirad),C83) -> 58.43911617 | D82: =IF($B$101>1,$I$78+$J$78*SIN(B82/Pirad),D83) -> -59.11889158 | E82: =(C82-$N$34)^2+(D82-$O$34)^2-$O$33^2 -> 9727.4326 | F82: =IF(E82/E83<0,(D82-D83)/(C82-C83),0) -> 0 | G82: =IF(F82<>0,D82-F82*C82,0) -> 0
B83: =B$88-5*A$82 -> 12.89296023 | C83: =IF($B$101>1,$H$78+$J$78*COS(B83/Pirad),C84) -> 56.63147206 | D83: =IF($B$101>1,$I$78+$J$78*SIN(B83/Pirad),D84) -> -43.12055232 | E83: 7255.630755 | F83: 0 | G83: 0
B84: =B$88-4*A$82 -> 25.78592046 | C84: =IF($B$101>1,$H$78+$J$78*COS(B84/Pirad),C85) -> 51.29968614 | D84: =IF($B$101>1,$I$78+$J$78*SIN(B84/Pirad),D85) -> -27.92889357 | E84: 4936.409716 | F84: 0 | G84: 0
A85: Right | B85: =B$88-3*A$82 -> 38.67888069 | C85: =IF($B$101>1,$H$78+$J$78*COS(B85/Pirad),C86) -> 42.71260182 | D85: =IF($B$101>1,$I$78+$J$78*SIN(B85/Pirad),D86) -> -14.3099208 | E85: 2886.711022 | F85: 0 | G85: 0
B86: =B$88-2*A$82 -> 51.57184092 | C86: =IF($B$101>1,$H$78+$J$78*COS(B86/Pirad),C87) -> 31.30320364 | D86: =IF($B$101>1,$I$78+$J$78*SIN(B86/Pirad),D87) -> -2.950340277 | E86: 1209.88615 | F86: -0.6244248234 | G86: 16.59615713
B87: =B$88-1*A$82 -> 64.46480115 | C87: =IF($B$101>1,$H$78+$J$78*COS(B87/Pirad),#REF!) -> 17.646785 | D87: =IF($B$101>1,$I$78+$J$78*SIN(B87/Pirad),#REF!) -> 5.577066518 | E87: -9.514749608 | F87: 0 | G87: 0
B88: =180+Pirad*ATAN2(H78,I78) -> 77.35776138 | C88: =IF($B$101>1,$H$78+$J$78*COS(B88/Pirad),#REF!) -> 2.431940325 | D88: =IF($B$101>1,$I$78+$J$78*SIN(B88/Pirad),#REF!) -> 10.84232415 | E88: =MIN((C88-$N$34)^2+(D88-$O$34)^2-$O$33^2,(C88-$N$35)^2+(D88-$O$35)^2-$O$33^2) -> -710.006112 | F88: 0 | G88: 0
B89: =B$88-1*A$94 -> 94.46480115 | C89: =IF($B$101>1,$H$78+$J$78*COS(B89/Pirad),#REF!) -> -18.84197243 | D89: =IF($B$101>1,$I$78+$J$78*SIN(B89/Pirad),#REF!) -> 12.36304698 | E89: =(C89-$N$35)^2+(D89-$O$35)^2-$O$33^2 -> 589.8362363 | F89: =IF(E88/E89<0,(D88-D89)/(C88-C89),0) -> -0.07148298726 | G89: 11.01616651
B90: =B$88-2*A$94 -> 111.5718409 | C90: =IF($B$101>1,$H$78+$J$78*COS(B90/Pirad),C89) -> -39.62199333 | D90: =IF($B$101>1,$I$78+$J$78*SIN(B90/Pirad),D89) -> 7.5586018 | E90: 2642.78712 | F90: 0 | G90: 0
A91: Left | B91: =B$88-3*A$94 -> 128.6788807 | C91: =IF($B$101>1,$H$78+$J$78*COS(B91/Pirad),C90) -> -58.06937644 | D91: =IF($B$101>1,$I$78+$J$78*SIN(B91/Pirad),D90) -> -3.145884108 | E91: 5371.672979 | F91: 0 | G91: 0
B92: =B$88-4*A$94 -> 145.7859205 | C92: =IF($B$101>1,$H$78+$J$78*COS(B92/Pirad),C91) -> -72.55178218 | D92: =IF($B$101>1,$I$78+$J$78*SIN(B92/Pirad),D91) -> -18.80321102 | E92: 8535.024962 | F92: 0 | G92: 0
B93: =B$88-5*A$94 -> 162.8929602 | C93: =IF($B$101>1,$H$78+$J$78*COS(B93/Pirad),C92) -> -81.7877169 | D93: =IF($B$101>1,$I$78+$J$78*SIN(B93/Pirad),D92) -> -38.02792095 | E93: 11852.92995 | F93: 0 | G93: 0
A94: =(B88-B94)/6 -> -17.10703977 | B94: =Pirad*ACOS(MAX(-1,MIN(1,(-2*ABS(G67)-$H$78)/$J$78))) -> 180 | C94: =IF($B$101>1,$H$78+$J$78*COS(B94/Pirad),C93) -> -84.95992747 | D94: =IF($B$101>1,$I$78+$J$78*SIN(B94/Pirad),D93) -> -59.11889158 | E94: 15031.79899 | F94: 0 | G94: 0
A96: Weak Source + Mho | B96: m | C96: B | D96: a | E96: b | F96: c | G96: SQRT() | H96: R | I96: X
A97: Right Lens | B97: =SUM(F82:F87) -> -0.6244248234 | C97: =SUM(G82:G87) -> 16.59615713 | D97: =B97^2+1 -> 1.38990636 | E97: =2*(B97*(C97-O$34)-N$34) -> 21.25551126 | F97: =N$34^2+O$34^2-$O$33^2+C97^2-2*C97*O$34 -> -817.4355659 | G97: =E97^2-4*D97*F97 -> 4996.432327 | H97: =IF(OR(G97<0,AND(B97=0,C97=0)),0,(-E97+SQRT(G97))/(2*D97)) -> 17.78175009 | I97: =IF(OR(G97<0,AND(B97=0,C97=0)),0,B97*H97+C97) -> 5.492790966
A98: Left Lens | B98: =SUM(F89:F94) -> -0.07148298726 | C98: =SUM(G89:G94) -> 11.01616651 | D98: =B98^2+1 -> 1.005109817 | E98: =2*(B98*(C98-O$35)-N$35) -> -39.69502715 | F98: =N$35^2+O$35^2-$O$33^2+C98^2-2*C98*O$35 -> -514.9303833 | G98: =E98^2-4*D98*F98 -> 3645.941515 | H98: =IF(OR(G98<0,AND(B98=0,C98=0)),0,(-E98-SQRT(G98))/(2*D98)) -> -10.29071886 | I98: =IF(OR(G98<0,AND(B98=0,C98=0)),0,B98*H98+C98) -> 11.75177783
A100: Weak Receive End Swing Locus and intersections with the Lens Characteristics (Es > Er, circular excitation model)
A101: E(R)/E(S) = | B101: =1/$D$6 -> 1.428571429 | D101: Re (kZtF) | E101: Im (kZtF) | F101: R1 (seg) | G101: X1 (seg) | H101: Δ R | I101: Δ X | J101: Radius
A102: Z (S) = | B102: =C71 -> 52.23822304 | C102: =D71 -> 75.97340848 | D102: =IF($B$101>1,$B$101/($B$101-1),1)*B$102*COS(C$102/Pirad) -> 42.20364226 | E102: =IF($B$101>1,$B$101/($B$101-1),1)*B$102*SIN(C$102/Pirad) -> 168.935513 | F102: =D102+$B$104 -> 41.10781585 | G102: =E102+$C$104 -> 158.5097986 | H102: =F102-F103 -> 34.75594069 | I102: =G102-G103 -> 139.1233636 | J102: =SQRT(H102^2+I102^2)/2 -> 71.69952182
B103: =C70 -> 12.66109268 | C103: =D70 -> 50.68065389 | D103: =B101*B103/(B101+1) -> 7.447701576 | E103: =B101*C103/(B101+1) -> 29.81214935 | F103: =D103+$B$104 -> 6.351875163 | G103: =E103+$C$104 -> 19.38643503
A104: - Rs - j Xs = | B104: =A65 -> -1.095826413 | C104: =B65 -> -10.42571432 | G104: ES > ER Swing Locus Center and Radius | H104: =(F103+F102)/2 -> 23.72984551 | I104: =(G103+G102)/2 -> 88.94811683 | J104: =J102 -> 71.69952182
D106: ="Swing Locus, Er/Es = "&B75 -> Swing Locus, Er/Es = 0.7 | E106: Power Swing Vulnerability Full Lens
A107: Δ θ | B107: θ | C107: R-R | D107: X-R | E107: crossing | F107: slope | G107: Intercept
A108: =(B108-B114)/6 -> -12.51039335 | B108: =360-Pirad*ACOS(MIN(1,MAX(-1,(-2*ABS(G67)-$H$104)/$J$104))) -> 180 | C108: =IF($B$101>1,$H$104+$J$104*COS(B108/Pirad),C109) -> -47.96967631 | D108: =IF($B$101>1,$I$104+$J$104*SIN(B108/Pirad),D109) -> 88.94811683 | E108: =(C108-$N$35)^2+(D108-$O$35)^2-$O$33^2 -> 9727.409644 | F108: =IF(E108/E109<0,(D108-D109)/(C108-C109),0) -> 0 | G108: =IF(F108<>0,D108-F108*C108,0) -> 0
B109: =B$114+5*A$108 -> 192.5103933 | C109: =IF($B$101>1,$H$104+$J$104*COS(B109/Pirad),C110) -> -46.26729516 | D109: =IF($B$101>1,$I$104+$J$104*SIN(B109/Pirad),D110) -> 73.41680241 | E109: 7327.364065 | F109: 0 | G109: 0
B110: =B$114+4*A$108 -> 205.0207867 | C110: =IF($B$101>1,$H$104+$J$104*COS(B110/Pirad),C111) -> -41.24099189 | D110: =IF($B$101>1,$I$104+$J$104*SIN(B110/Pirad),D111) -> 58.62301638 | E110: 5067.606614 | F110: 0 | G110: 0
A111: Left | B111: =B$114+3*A$108 -> 217.53118 | C111: =IF($B$101>1,$H$104+$J$104*COS(B111/Pirad),C112) -> -33.12944826 | D111: =IF($B$101>1,$I$104+$J$104*SIN(B111/Pirad),D112) -> 45.2692645 | E111: 3055.445356 | F111: 0 | G111: 0
B112: =B$114+2*A$108 -> 230.0415734 | C112: =IF($B$101>1,$H$104+$J$104*COS(B112/Pirad),C113) -> -22.31785343 | D112: =IF($B$101>1,$I$104+$J$104*SIN(B112/Pirad),D113) -> 33.98967024 | E112: 1386.43087 | F112: 0 | G112: 0
B113: =B$114+1*A$108 -> 242.5519667 | C113: =IF($B$101>1,$H$104+$J$104*COS(B113/Pirad),#REF!) -> -9.319612638 | D113: =IF($B$101>1,$I$104+$J$104*SIN(B113/Pirad),#REF!) -> 25.31986253 | E113: 139.8188814 | F113: -0.38773061 | G113: 21.70636344
B114: =180+Pirad*ATAN2(H104,I104) -> 255.0623601 | C114: =IF($B$101>1,$H$104+$J$104*COS(B114/Pirad),#REF!) -> 5.248032615 | D114: =IF($B$101>1,$I$104+$J$104*SIN(B114/Pirad),#REF!) -> 19.67154055 | E114: =MIN((C114-$N$34)^2+(D114-$O$34)^2-$O$33^2,(C114-$N$35)^2+(D114-$O$35)^2-$O$33^2) -> -693.9586611 | F114: 0 | G114: 0
B115: =B$114+1*A$120 -> 262.874374 | C115: =IF($B$101>1,$H$104+$J$104*COS(B115/Pirad),#REF!) -> 14.83585729 | D115: =IF($B$101>1,$I$104+$J$104*SIN(B115/Pirad),#REF!) -> 17.8023622 | E115: =(C115-$N$34)^2+(D115-$O$34)^2-$O$33^2 -> -321.8591249 | F115: =IF(E114/E115<0,(D114-D115)/(C114-C115),0) -> 0 | G115: 0
B116: =B$114+2*A$120 -> 270.6863879 | C116: =IF($B$101>1,$H$104+$J$104*COS(B116/Pirad),C115) -> 24.58876574 | D116: =IF($B$101>1,$I$104+$J$104*SIN(B116/Pirad),D115) -> 17.25373989 | E116: 247.0547837 | F116: -0.05625217435 | G116: 18.63691143
A117: Right | B117: =B$114+3*A$120 -> 278.4984018 | C117: =IF($B$101>1,$H$104+$J$104*COS(B117/Pirad),C116) -> 34.32573153 | D117: =IF($B$101>1,$I$104+$J$104*SIN(B117/Pirad),D116) -> 18.03585676 | E117: 1002.223296 | F117: 0 | G117: 0
B118: =B$114+4*A$120 -> 286.3104156 | C118: =IF($B$101>1,$H$104+$J$104*COS(B118/Pirad),C117) -> 43.86602415 | D118: =IF($B$101>1,$I$104+$J$104*SIN(B118/Pirad),D117) -> 20.13419572 | E118: 1929.629521 | F118: 0 | G118: 0
B119: =B$114+5*A$120 -> 294.1224295 | C119: =IF($B$101>1,$H$104+$J$104*COS(B119/Pirad),C118) -> 53.03256359 | D119: =IF($B$101>1,$I$104+$J$104*SIN(B119/Pirad),D118) -> 23.50980892 | E119: 3012.059614 | F119: 0 | G119: 0
A120: =(B120-B114)/6 -> 7.812013891 | B120: =360-Pirad*ACOS(MAX(-1,MIN(1,(2*ABS(G65)-$H$104)/$J$104))) -> 301.9344434 | C120: =IF($B$101>1,$H$104+$J$104*COS(B120/Pirad),C119) -> 61.65520716 | D120: =IF($B$101>1,$I$104+$J$104*SIN(B120/Pirad),D119) -> 28.10004067 | E120: 4229.422291 | F120: 0 | G120: 0
A122: Weak Receive + Mho | B122: m | C122: B | D122: a | E122: b | F122: c | G122: SQRT() | H122: R | I122: X
A123: Right Lens | B123: =SUM(F115:F120) -> -0.05625217435 | C123: =SUM(G115:G120) -> 18.63691143 | D123: =B123^2+1 -> 1.003164307 | E123: =2*(B123*(C123-O$34)-N$34) -> 18.78336903 | F123: =N$34^2+O$34^2-$O$33^2+C123^2-2*C123*O$34 -> -821.3256411 | G123: =E123^2-4*D123*F123 -> 3648.513223 | H123: =IF(OR(G123<0,AND(B123=0,C123=0)),0,(-E123+SQRT(G123))/(2*D123)) -> 20.74413665 | I123: =IF(OR(G123<0,AND(B123=0,C123=0)),0,B123*H123+C123) -> 17.47000864
A124: Left Lens | B124: =SUM(F108:F113) -> -0.38773061 | C124: =SUM(G108:G113) -> 21.70636344 | D124: =B124^2+1 -> 1.150335026 | E124: =2*(B124*(C124-O$35)-N$35) -> -47.83079094 | F124: =N$35^2+O$35^2-$O$33^2+C124^2-2*C124*O$35 -> -405.8581178 | G124: =E124^2-4*D124*F124 -> 4155.275796 | H124: =IF(OR(G124<0,AND(B124=0,C124=0)),0,(-E124-SQRT(G124))/(2*D124)) -> -7.228606202 | I124: =IF(OR(G124<0,AND(B124=0,C124=0)),0,B124*H124+C124) -> 24.50911533
